bitfinex/quotes_SOLUSD_20251119
["timestamp","ask_amount","ask_price","bid_price","bid_amount"]
[1763539504314,0.1,140.94,140.93,13.67253589]
[1763539504478,0.1,140.94,140.93,14.65882769]
[1763539504685,0.8,140.94,140.93,14.00882769]
[1763539504983,4.0337082,140.94,140.93,14.00882769]
[1763539505380,4.0337082,140.94,140.92,4.22]
[1763539505612,3.9337082,140.93,140.92,9.78882769]
[1763539505992,3.9337082,140.93,140.89,9.78882769]
[1763539506196,0.1,140.94,140.89,14.00882769]
[1763539506197,3.2337082,140.91,140.89,14.00882769]
[1763539506395,3.2337082,140.9,140.89,14.00882769]
[1763539506908,3.9337082,140.91,140.89,14.00882769]
[1763539508926,3.2337082,140.92,140.89,14.65882769]
[1763539509098,3.9337082,140.93,140.89,14.65882769]
[1763539509300,0.7,140.92,140.89,14.00882769]
[1763539509497,3.9337082,140.92,140.89,14.00882769]
[1763539509894,0.7,140.91,140.89,14.00882769]
[1763539512132,2.06826349,140.9,140.89,14.00882769]
[1763539512346,0.7,140.91,140.89,14.00882769]
[1763539512630,2.76826349,140.91,140.89,14.00882769]
[1763539513100,2.76826349,140.91,140.88,9.78882769]
[1763539513295,2.76826349,140.9,140.88,9.78882769]
[1763539513497,2.06826349,140.89,140.88,9.78882769]
[1763539513800,2.76826349,140.89,140.88,9.78882769]
[1763539515315,2.76826349,140.89,140.87,9.78882769]
[1763539515520,2.76826349,140.9,140.87,14.00882769]
[1763539516208,0.7,140.9,140.87,14.00882769]
[1763539516423,2.76826349,140.9,140.87,14.00882769]
[1763539516920,0.7,140.89,140.87,14.00882769]
[1763539517123,2.06826349,140.88,140.85,9.78882769]
[1763539517416,2.06826349,140.86,140.85,14.00882769]
[1763539517813,2.76826349,140.86,140.85,14.00882769]
[1763539517994,2.76826349,140.86,140.83,4.22]
[1763539518196,2.76826349,140.85,140.83,4.22]
[1763539519215,2.06826349,140.85,140.83,4.22]
[1763539519424,2.06826349,140.86,140.83,4.87]
[1763539519609,2.06826349,140.86,140.83,4.22]
[1763539519807,2.73826349,140.86,140.83,4.22]
[1763539521033,2.73826349,140.85,140.83,4.22]
[1763539521517,2.06826349,140.86,140.83,4.22]
[1763539522032,2.73826349,140.86,140.83,4.22]
[1763539522237,0.67,140.86,140.83,4.93]
[1763539522407,2.73826349,140.86,140.83,4.22]
[1763539524122,16.71882769,140.93,140.83,14.00882769]
[1763539524123,2.06826349,140.84,140.83,14.00882769]
[1763539524324,2.06826349,140.84,140.82,9.78882769]
[1763539524624,2.74826349,140.83,140.79,4.22]
[1763539524852,2.06826349,140.84,140.79,7.00826349]
[1763539525125,2.06826349,140.84,140.8,10.50882769]
[1763539525630,2.74826349,140.84,140.8,10.50882769]
[1763539526846,2.74826349,140.84,140.82,9.78882769]
[1763539527033,0.68,140.83,140.82,9.78882769]
[1763539527732,2.06826349,140.84,140.82,9.78882769]
[1763539527920,0.68,140.83,140.82,9.78882769]
[1763539529517,2.74826349,140.83,140.82,9.78882769]
[1763539530312,0.68,140.86,140.82,10.50882769]
[1763539530511,2.06826349,140.85,140.82,10.50882769]
[1763539530811,2.06826349,140.87,140.83,4.94]
[1763539531012,2.06826349,140.87,140.83,14.72882769]
[1763539531221,2.74826349,140.87,140.83,14.72882769]
[1763539531422,2.74826349,140.89,140.84,12.57709118]
[1763539531833,2.74826349,140.89,140.85,0.72]
[1763539532137,0.68,140.88,140.85,0.72]
[1763539532358,20.86922349,140.88,140.85,0.72]
[1763539533124,2.74826349,140.88,140.85,0.72]
[1763539533811,20.86922349,140.88,140.85,0.72]
[1763539534819,2.74826349,140.88,140.85,0.72]
[1763539535020,2.06826349,140.92,140.88,9.78882769]
[1763539535416,0.68,140.92,140.89,4.94]
[1763539535741,0.68,140.92,140.89,4.22]
[1763539536144,2.06826349,140.91,140.89,4.22]
[1763539536346,2.06826349,140.91,140.9,9.78882769]
[1763539536526,2.74826349,140.91,140.9,9.78882769]
[1763539537140,2.06826349,140.91,140.9,9.78882769]
[1763539538023,2.06826349,140.92,140.9,9.78882769]
[1763539538224,2.74826349,140.92,140.9,9.78882769]
[1763539540144,18.12096,140.93,140.9,9.78882769]
[1763539540332,2.06826349,140.92,140.9,9.78882769]
[1763539540518,2.74826349,140.92,140.9,9.78882769]
[1763539541542,2.06826349,140.92,140.9,9.78882769]
[1763539541720,2.06826349,140.92,140.9,10.50882769]
[1763539542042,2.06826349,140.92,140.9,9.78882769]
[1763539542741,2.74826349,140.92,140.9,9.78882769]
[1763539543744,2.06826349,140.92,140.9,9.78882769]
[1763539544529,20.86922349,140.93,140.9,9.78882769]
[1763539544726,2.06826349,140.92,140.9,9.78882769]
[1763539545120,2.74826349,140.92,140.9,9.78882769]
[1763539545626,2.74826349,140.91,140.9,9.78882769]
[1763539546132,2.06826349,140.91,140.9,9.78882769]
[1763539546342,2.06826349,140.92,140.9,9.78882769]
[1763539546549,2.06826349,140.91,140.9,9.78882769]
[1763539547634,2.74826349,140.91,140.86,9.78882769]
[1763539547824,2.06826349,140.88,140.87,14.00882769]
[1763539548029,2.06826349,140.88,140.87,9.78882769]
[1763539548327,2.74826349,140.88,140.87,9.78882769]
[1763539550450,2.06826349,140.88,140.87,9.78882769]
[1763539550750,2.78826349,140.88,140.87,9.78882769]
[1763539550952,2.78826349,140.88,140.83,0.66]
[1763539551121,0.1,140.94,140.83,0.66]
[1763539551122,2.06826349,140.86,140.83,14.66882769]
[1763539551740,2.78826349,140.86,140.83,14.66882769]
[1763539552252,2.78826349,140.85,140.83,14.00882769]
[1763539553253,2.78826349,140.86,140.83,14.00882769]
[1763539554655,2.78826349,140.85,140.83,14.00882769]
[1763539555354,2.78826349,140.85,140.82,9.78882769]
[1763539555522,0.72,140.84,140.82,14.00882769]
[1763539556028,2.78826349,140.85,140.82,14.66882769]
[1763539556340,2.06826349,140.84,140.82,14.66882769]
[1763539556535,0.72,140.85,140.82,14.66882769]
[1763539556736,2.06826349,140.84,140.82,14.00882769]
[1763539557235,2.06826349,140.83,140.82,14.00882769]
[1763539557966,2.78826349,140.84,140.82,14.00882769]
[1763539559443,2.06826349,140.84,140.82,14.00882769]
[1763539559861,2.78826349,140.85,140.82,14.66882769]
[1763539561037,2.06826349,140.85,140.82,14.66882769]
[1763539561355,2.78826349,140.85,140.82,14.66882769]
[1763539561661,2.78826349,140.84,140.82,14.00882769]
[1763539562059,2.78826349,140.83,140.79,10.44882769]
[1763539562230,18.84096,140.85,140.8,0.66]
[1763539562436,18.84096,140.85,140.81,14.00882769]
[1763539562736,2.78826349,140.85,140.81,14.66882769]
[1763539563053,2.06826349,140.84,140.81,14.66882769]
[1763539563260,20.90922349,140.85,140.81,14.66882769]
[1763539563475,0.72,140.85,140.81,16.73709118]
[1763539563662,2.78826349,140.85,140.81,10.44882769]
[1763539564535,2.78826349,140.85,140.83,9.78882769]
[1763539567457,2.78826349,140.85,140.82,9.78882769]
[1763539567836,2.06826349,140.84,140.82,9.78882769]
[1763539568233,2.06826349,140.84,140.8,0.66]
[1763539568458,2.78826349,140.84,140.8,0.66]
[1763539568654,2.06826349,140.84,140.8,0.66]
[1763539568961,2.78826349,140.84,140.81,9.78882769]
[1763539569348,2.78826349,140.84,140.81,0.66]
[1763539569874,2.06826349,140.83,140.81,0.66]
[1763539570252,2.06826349,140.83,140.78,9.78882769]
[1763539570450,2.06826349,140.83,140.74,0.91053005]
[1763539570451,2.06826349,140.79,140.74,0.2]
[1763539570763,2.06826349,140.77,140.74,0.2]
[1763539570938,2.06826349,140.77,140.75,9.78882769]
[1763539571140,2.06826349,140.78,140.75,9.78882769]
[1763539571473,2.78826349,140.77,140.74,0.86]
[1763539571858,2.78826349,140.77,140.75,9.78882769]
[1763539572238,2.78826349,140.77,140.74,0.86]
[1763539572239,2.78826349,140.76,140.74,0.2]
[1763539572440,2.06826349,140.75,140.74,0.2]
[1763539572756,3.96084816,140.75,140.74,0.2]
[1763539573764,0.72,140.77,140.74,9.98882769]
[1763539573945,3.24084816,140.75,140.74,9.98882769]
[1763539574149,3.24084816,140.75,140.74,0.2]
[1763539574951,0.72,140.76,140.74,0.2]
[1763539575248,3.24084816,140.75,140.74,0.2]
[1763539575644,0.72,140.76,140.74,0.86]
[1763539575645,3.24084816,140.76,140.74,0.86]
[1763539576050,3.24084816,140.75,140.74,9.98882769]
[1763539576546,18.12096,140.77,140.74,9.98882769]
[1763539576547,0.72,140.77,140.74,9.98882769]
[1763539576752,0.72,140.76,140.74,9.98882769]
[1763539577074,3.24084816,140.75,140.74,0.2]
[1763539577275,3.24084816,140.75,140.69,0.2]
[1763539577461,3.24084816,140.7,140.69,0.2]
[1763539577866,3.96084816,140.7,140.69,0.2]
[1763539578170,18.12096,140.76,140.69,0.86]
[1763539578372,5.69626805,140.85,140.69,10.64882769]
[1763539578373,2.84890139,140.82,140.69,10.64882769]
[1763539578555,0.72,140.76,140.71,9.78882769]
[1763539578876,3.96084816,140.76,140.71,13.02967585]
[1763539579174,3.96084816,140.76,140.73,9.78882769]
[1763539579482,18.12096,140.77,140.73,9.78882769]
[1763539579680,18.12096,140.77,140.75,9.78882769]
[1763539579887,3.24084816,140.78,140.75,9.78882769]
[1763539580060,3.96084816,140.77,140.75,9.78882769]
[1763539580262,3.24084816,140.77,140.75,9.78882769]
[1763539581275,3.96084816,140.78,140.75,0.67]
[1763539581489,3.24084816,140.77,140.73,10.45882769]
[1763539581679,3.24084816,140.77,140.75,9.78882769]
[1763539581877,18.12096,140.81,140.71,3.24084816]
[1763539581878,3.24084816,140.76,140.71,3.24084816]
[1763539582088,3.24084816,140.75,140.72,9.78882769]
[1763539582287,3.24084816,140.73,140.69,0.2]
[1763539582490,21.36180816,140.7,140.69,0.2]
[1763539582977,22.08180816,140.7,140.69,0.2]
[1763539583374,18.84096,140.7,140.69,0.2]
[1763539583593,22.08180816,140.7,140.69,0.2]
[1763539584697,3.96084816,140.7,140.69,0.2]
[1763539587366,0.72,140.7,140.69,0.2]
[1763539587612,3.96084816,140.7,140.69,0.2]
[1763539588100,22.08180816,140.7,140.69,0.2]
[1763539590604,21.36180816,140.7,140.69,0.2]
[1763539590794,3.95084816,140.7,140.69,0.2]
[1763539591007,3.95084816,140.7,140.68,0.2]
[1763539591177,22.07180816,140.69,140.68,0.2]
[1763539591897,18.12096,140.69,140.68,0.2]
[1763539592277,21.36180816,140.69,140.68,0.2]
[1763539592479,3.24084816,140.69,140.68,0.2]
[1763539593395,5.96552477,140.79,140.68,10.66882769]
[1763539593396,0.71,140.74,140.68,10.66882769]
[1763539593775,3.24084816,140.73,140.7,9.78882769]
[1763539594292,3.24084816,140.73,140.71,0.68]
[1763539595804,0.71,140.76,140.71,0.68]
[1763539595983,3.24084816,140.73,140.71,0.68]
[1763539597805,3.24084816,140.74,140.71,0.68]
[1763539597974,3.24084816,140.74,140.72,9.78882769]
[1763539598401,3.24084816,140.73,140.71,9.78882769]
[1763539598695,3.24084816,140.73,140.71,10.46882769]
[1763539599088,3.95084816,140.72,140.69,9.78882769]
[1763539599280,3.24084816,140.72,140.69,10.46882769]
[1763539599480,3.24084816,140.72,140.7,0.68]
[1763539600198,3.24084816,140.72,140.71,9.78882769]
[1763539600398,3.24084816,140.73,140.71,9.78882769]
[1763539600705,3.24084816,140.72,140.71,9.78882769]
[1763539601380,3.24084816,140.72,140.68,0.2]
[1763539601612,3.24084816,140.72,140.7,0.68]
[1763539601978,18.12096,140.77,140.68,0.2]
[1763539601979,3.95084816,140.71,140.68,0.2]
[1763539602310,3.24084816,140.69,140.68,0.2]
[1763539602480,3.24084816,140.7,140.68,0.2]
[1763539602880,3.24084816,140.7,140.68,0.88]
[1763539603903,3.24084816,140.71,140.69,0.68]
[1763539604697,3.24084816,140.7,140.69,10.46882769]
[1763539605910,0.71,140.73,140.69,10.46882769]
[1763539606091,3.24084816,140.7,140.69,10.46882769]
[1763539606415,3.24084816,140.7,140.68,9.98882769]
[1763539606597,3.24084816,140.7,140.68,10.66882769]
[1763539606797,3.24084816,140.7,140.68,9.98882769]
[1763539607004,3.24084816,140.7,140.69,0.68]
[1763539607454,3.24084816,140.7,140.68,10.66882769]
[1763539607600,0.71,140.72,140.68,9.98882769]
[1763539607807,0.71,140.72,140.69,0.68]
[1763539608006,3.24084816,140.7,140.69,0.68]
[1763539608719,0.71,140.72,140.69,0.68]
[1763539609012,3.24084816,140.7,140.69,0.68]
[1763539609200,18.12096,140.72,140.69,0.68]
[1763539609404,3.24084816,140.72,140.69,0.68]
[1763539609612,0.66,140.74,140.69,0.68]
[1763539609797,3.24084816,140.73,140.69,0.68]
[1763539610424,3.24084816,140.71,140.69,0.68]
[1763539612616,0.66,140.72,140.69,0.69]
[1763539612801,3.24084816,140.71,140.69,0.69]
[1763539613005,3.24084816,140.7,140.68,9.98882769]
[1763539613206,3.24084816,140.69,140.68,9.98882769]
[1763539613407,3.24084816,140.7,140.68,10.67882769]
[1763539614002,3.24084816,140.69,140.68,9.98882769]
[1763539615100,4.77642507,140.73,140.68,10.67882769]
[1763539615101,0.66,140.72,140.68,10.67882769]
[1763539615301,3.24084816,140.72,140.7,9.78882769]
[1763539615719,3.24084816,140.72,140.7,0.69]
[1763539616309,3.24084816,140.71,140.68,0.89]
[1763539616608,3.24084816,140.71,140.69,9.78882769]
[1763539616806,4.78309349,140.74,140.69,9.78882769]
[1763539616807,3.24084816,140.7,140.69,9.78882769]
[1763539617524,3.24084816,140.7,140.68,0.2]
[1763539617828,3.90084816,140.7,140.68,0.2]
[1763539618023,3.24084816,140.69,140.68,0.2]
[1763539618227,3.24084816,140.69,140.68,9.98882769]
[1763539618416,3.90084816,140.69,140.68,0.2]
[1763539619828,22.02180816,140.69,140.68,0.2]
[1763539620213,18.78096,140.69,140.68,0.2]
[1763539620418,22.02180816,140.69,140.68,0.2]
[1763539620617,3.90084816,140.69,140.68,0.2]
[1763539621428,14.00884957,140.69,140.68,0.2]
[1763539621625,27.34201258,140.69,140.68,0.2]
[1763539621827,32.12980957,140.69,140.68,0.2]
[1763539622222,27.34201258,140.69,140.68,0.2]
[1763539623925,26.68201258,140.69,140.68,0.2]
[1763539624118,21.36180816,140.69,140.68,0.2]
[1763539624312,22.02180816,140.69,140.68,0.2]
[1763539624632,21.36180816,140.69,140.68,0.2]
[1763539625819,22.02180816,140.69,140.68,0.2]
[1763539626228,21.36180816,140.69,140.68,0.2]
[1763539626425,22.02180816,140.69,140.68,0.2]
[1763539627139,21.36180816,140.69,140.68,0.2]
[1763539629251,22.02180816,140.69,140.68,0.2]
[1763539630545,21.36180816,140.69,140.68,0.2]
[1763539630741,18.12096,140.69,140.68,0.2]
[1763539630931,0.66,140.74,140.69,9.78882769]
[1763539631132,3.24084816,140.72,140.69,10.47882769]
[1763539631353,4.79101467,140.75,140.71,9.78882769]
[1763539631534,0.66,140.76,140.71,9.78882769]
[1763539631535,3.24084816,140.73,140.71,9.78882769]
[1763539631738,3.24084816,140.73,140.72,10.47882769]
[1763539632042,3.24084816,140.74,140.72,0.69]
[1763539632245,3.24084816,140.74,140.73,10.47882769]
[1763539632824,3.24084816,140.74,140.73,9.78882769]
[1763539634951,2.07400228,140.74,140.73,9.78882769]
[1763539636236,5.44737452,140.76,140.73,9.78882769]
[1763539636439,2.07400228,140.74,140.73,9.78882769]
[1763539642146,2.78400228,140.74,140.69,0.7]
[1763539642346,2.07400228,140.7,140.68,10.68882769]
[1763539642527,0.71,140.73,140.68,10.68882769]
[1763539642725,0.71,140.73,140.7,9.78882769]
[1763539642926,2.07400228,140.71,140.7,9.78882769]
[1763539643137,2.07400228,140.71,140.68,0.9]
[1763539643350,2.07400228,140.69,140.68,0.9]
[1763539643850,2.78400228,140.69,140.68,0.2]
[1763539644033,2.07400228,140.69,140.68,0.2]
[1763539647752,0.71,140.71,140.68,0.86]
[1763539647949,0.72,140.73,140.68,0.86]
[1763539648141,20.19496228,140.7,140.69,10.44882769]
[1763539648538,2.07400228,140.7,140.69,10.44882769]
[1763539649562,2.07400228,140.71,140.7,9.78882769]
[1763539649762,2.07400228,140.71,140.69,0.66]
[1763539649961,20.19496228,140.7,140.68,9.98882769]
[1763539650162,2.07400228,140.69,140.68,9.98882769]
[1763539650372,2.07400228,140.69,140.68,0.86]
[1763539650738,18.12096,140.74,140.68,0.86]
[1763539650739,2.07400228,140.7,140.68,0.86]
[1763539650957,18.84096,140.74,140.7,9.78882769]
[1763539650958,18.12096,140.74,140.7,9.78882769]
[1763539651155,20.19496228,140.71,140.7,9.78882769]
[1763539651552,20.19496228,140.71,140.7,0.66]
[1763539652053,2.07400228,140.71,140.7,0.66]
[1763539652256,20.19496228,140.71,140.7,0.66]
[1763539652463,2.07400228,140.71,140.7,0.66]
[1763539652667,18.84096,140.74,140.7,0.66]
[1763539652968,2.07400228,140.71,140.7,0.66]
[1763539655073,18.12096,140.75,140.7,0.66]
[1763539655373,0.72,140.77,140.7,10.44882769]
[1763539655374,2.07400228,140.74,140.7,10.44882769]
[1763539655561,2.07400228,140.74,140.72,9.78882769]
[1763539655953,2.07400228,140.74,140.73,10.44882769]
[1763539656660,2.07400228,140.74,140.73,9.78882769]
[1763539658469,2.07400228,140.74,140.72,9.78882769]
[1763539658781,2.07400228,140.73,140.72,9.78882769]
[1763539658989,4.78629267,140.76,140.73,0.66]
[1763539659155,13.94079917,140.84,140.73,2.73400228]
[1763539659156,2.07400228,140.78,140.73,2.73400228]
[1763539659591,2.07400228,140.78,140.74,10.44882769]
[1763539659787,2.07400228,140.79,140.74,12.52282997]
[1763539659959,0.72,140.82,140.76,9.78882769]
[1763539660160,2.07400228,140.79,140.76,9.78882769]
[1763539660356,2.07400228,140.8,140.78,9.78882769]
[1763539660771,2.07400228,140.79,140.78,0.66]
[1763539661288,20.19496228,140.8,140.78,0.66]
[1763539661585,2.07400228,140.8,140.78,0.66]
[1763539663561,2.07400228,140.79,140.78,0.66]
[1763539663981,2.07400228,140.79,140.76,0.66]
[1763539664178,2.07400228,140.78,140.76,0.66]
[1763539664477,18.84096,140.83,140.76,0.66]
[1763539664659,2.07400228,140.8,140.76,0.66]
[1763539665284,2.07400228,140.8,140.77,9.78882769]
[1763539665485,2.07400228,140.8,140.79,9.78882769]
[1763539666981,2.07400228,140.8,140.79,0.66]
[1763539667185,2.07400228,140.8,140.76,9.78882769]
[1763539667365,2.07400228,140.8,140.77,0.66]
[1763539669087,2.07400228,140.79,140.77,0.66]
[1763539669786,2.07400228,140.8,140.77,0.66]
[1763539670375,2.07400228,140.82,140.78,9.78882769]
[1763539670583,0.9,140.86,140.78,9.78882769]
[1763539670889,2.07400228,140.83,140.79,0.66]
[1763539671678,2.07400228,140.82,140.79,0.66]
[1763539671916,18.12096,140.85,140.8,9.78882769]
[1763539672070,0.2,140.86,140.85,9.78882769]
[1763539672273,0.2,140.89,140.85,11.86282997]
[1763539672474,0.2,140.89,140.87,11.86282997]
[1763539672690,0.2,140.89,140.88,11.86282997]
[1763539672889,0.2,140.89,140.88,12.52282997]
[1763539673097,0.2,140.9,140.89,9.78882769]
[1763539673395,0.2,140.9,140.89,12.52282997]
[1763539673575,0.2,140.9,140.89,30.64378997]
[1763539673979,0.1,140.94,140.89,30.64378997]
[1763539674177,0.1,140.94,140.93,11.86282997]
[1763539674688,0.1,140.94,140.93,12.52282997]
[1763539674870,0.1,140.94,140.93,10.44882769]
[1763539675071,0.1,140.94,140.93,12.52282997]
[1763539675892,0.1,140.94,140.93,10.44882769]
[1763539676274,0.1,140.94,140.93,9.78882769]
[1763539676572,0.1,140.94,140.93,10.44882769]
[1763539676984,0.1,140.94,140.93,9.78882769]
[1763539677186,0.1,140.94,140.93,10.44882769]
[1763539678116,0.1,140.94,140.93,9.78882769]
[1763539678495,2.87400228,140.94,140.93,9.78882769]
[1763539678681,2.87400228,140.94,140.87,0.66]
[1763539678998,2.07400228,140.91,140.87,0.66]
[1763539679192,2.07400228,140.9,140.87,0.66]
[1763539680670,2.07400228,140.89,140.87,0.66]
[1763539681689,2.07400228,140.89,140.86,9.78882769]
[1763539682100,2.07400228,140.89,140.86,10.44882769]
[1763539682286,0.7,140.93,140.87,0.66]
[1763539682486,2.07400228,140.9,140.87,0.66]
[1763539682794,2.07400228,140.89,140.87,0.66]
[1763539682992,18.22096,140.94,140.87,0.66]
[1763539683305,2.07400228,140.92,140.89,9.78882769]
[1763539683477,2.07400228,140.91,140.89,0.66]
[1763539684179,2.07400228,140.91,140.9,9.78882769]
[1763539684497,2.07400228,140.91,140.86,9.78882769]
[1763539684498,0.7,140.9,140.86,9.78882769]
[1763539684707,2.07400228,140.88,140.85,9.78882769]
[1763539685003,2.07400228,140.89,140.85,10.44882769]
[1763539685189,2.07400228,140.89,140.87,9.78882769]
[1763539685391,2.07400228,140.88,140.87,9.78882769]
[1763539685988,2.07400228,140.89,140.87,9.78882769]
[1763539687382,2.77400228,140.89,140.87,9.78882769]
[1763539687579,2.07400228,140.89,140.87,9.78882769]
[1763539688632,2.77400228,140.88,140.83,0.66]
[1763539688782,2.07400228,140.86,140.84,9.78882769]
[1763539689479,2.07400228,140.86,140.84,0.66]
[1763539690085,2.07400228,140.87,140.85,9.78882769]
[1763539691381,2.07400228,140.87,140.82,2.07400228]
[1763539691382,2.07400228,140.87,140.83,9.78882769]
[1763539691591,2.07400228,140.86,140.84,0.66]
[1763539692085,2.07400228,140.87,140.84,0.66]
[1763539692510,2.07400228,140.86,140.84,0.66]
[1763539693114,2.77400228,140.85,140.81,0.66]
[1763539693409,0.7,140.85,140.82,9.78882769]
[1763539693614,0.7,140.84,140.79,10.44882769]
[1763539693982,0.7,140.84,140.81,9.78882769]
[1763539694628,2.07400228,140.83,140.81,9.78882769]
[1763539694926,3.23601963,140.83,140.81,9.78882769]
[1763539695605,0.7,140.87,140.83,9.78882769]
[1763539695916,3.23601963,140.85,140.81,0.66]
[1763539696099,3.23601963,140.85,140.8,9.78882769]
[1763539696285,3.23601963,140.85,140.8,13.02484732]
[1763539696617,3.23601963,140.85,140.82,9.78882769]
[1763539696781,9.01137714,140.85,140.82,9.78882769]
[1763539696987,9.01137714,140.84,140.82,0.66]
[1763539697201,9.01137714,140.84,140.79,18.80020483]
[1763539697413,9.01137714,140.84,140.81,9.78882769]
[1763539697615,0.7,140.85,140.81,9.78882769]
[1763539697906,9.01137714,140.84,140.81,0.66]
[1763539698116,9.01137714,140.85,140.83,9.78882769]
[1763539698329,0.7,140.9,140.83,18.80020483]
[1763539698516,9.01137714,140.88,140.85,9.78882769]
[1763539698687,9.01137714,140.87,140.85,9.78882769]
[1763539701325,9.01137714,140.86,140.83,10.46882769]
[1763539701508,9.01137714,140.86,140.83,9.78882769]
[1763539701811,9.01137714,140.86,140.83,0.68]
[1763539702683,9.01137714,140.84,140.81,0.68]
[1763539702889,9.01137714,140.84,140.79,9.78882769]
[1763539703088,9.01137714,140.84,140.79,10.46882769]
[1763539703314,9.72137714,140.84,140.81,9.78882769]
[1763539703627,18.12096,140.88,140.81,9.78882769]
[1763539703786,9.01137714,140.86,140.82,0.68]
[1763539704907,9.72137714,140.87,140.82,0.68]
[1763539706399,18.12096,140.88,140.82,0.68]
[1763539706400,9.73137714,140.86,140.82,0.68]
[1763539707311,9.01137714,140.87,140.82,9.69137714]
[1763539707522,27.13233714,140.88,140.82,9.69137714]
[1763539707689,27.13233714,140.88,140.84,9.78882769]
[1763539708095,27.13233714,140.88,140.86,9.78882769]
[1763539708416,18.12096,140.87,140.86,9.78882769]
[1763539709714,9.73137714,140.89,140.86,9.78882769]
[1763539709715,27.13233714,140.88,140.86,9.78882769]
[1763539709934,27.85233714,140.88,140.86,9.78882769]
[1763539711095,9.01137714,140.87,140.86,9.78882769]
[1763539711297,9.73137714,140.87,140.83,9.78882769]
[1763539711503,18.12096,140.88,140.81,9.78882769]
[1763539711504,9.01137714,140.84,140.81,9.78882769]
[1763539711918,9.01137714,140.84,140.81,0.66]
[1763539712095,9.73137714,140.83,140.8,9.78882769]
[1763539712296,9.01137714,140.82,140.78,9.78882769]
[1763539712496,9.01137714,140.82,140.8,9.78882769]
[1763539713211,9.73137714,140.82,140.8,9.78882769]
[1763539714128,9.01137714,140.81,140.76,27.13233714]
[1763539714310,9.01137714,140.81,140.77,10.44882769]
[1763539714921,9.01137714,140.81,140.78,0.66]
[1763539715304,0.72,140.83,140.78,0.66]
[1763539715505,9.01137714,140.82,140.78,0.66]
[1763539716425,5.97480365,140.91,140.78,9.67137714]
[1763539716613,0.72,140.86,140.79,9.78882769]
[1763539716919,3.23469243,140.86,140.82,9.78882769]
[1763539717424,3.95469243,140.86,140.82,10.44882769]
[1763539718022,3.23469243,140.87,140.84,9.78882769]
[1763539718413,3.23469243,140.87,140.84,10.44882769]
[1763539718619,3.95469243,140.87,140.84,10.44882769]
[1763539718912,3.23469243,140.88,140.85,0.66]
[1763539720124,3.95469243,140.88,140.85,0.66]
[1763539721307,3.23469243,140.87,140.84,9.78882769]
[1763539721521,3.23469243,140.86,140.82,0.66]
[1763539721725,3.23469243,140.85,140.82,0.66]
[1763539722026,3.95469243,140.86,140.83,9.78882769]
[1763539722227,3.95469243,140.86,140.83,10.44882769]
[1763539722901,3.95469243,140.86,140.82,9.78882769]
[1763539723119,3.95469243,140.86,140.82,10.44882769]
[1763539724022,3.23469243,140.84,140.81,9.78882769]
[1763539724330,3.23469243,140.84,140.79,3.89469243]
[1763539724530,3.95469243,140.83,140.8,9.78882769]
[1763539724730,3.95469243,140.82,140.78,9.78882769]
[1763539724916,3.95469243,140.82,140.78,10.44882769]
[1763539725925,3.95469243,140.82,140.78,9.78882769]
[1763539726107,3.23469243,140.83,140.8,9.78882769]
[1763539726307,21.35565243,140.85,140.81,0.66]
[1763539726512,22.07565243,140.85,140.82,9.78882769]
[1763539726815,3.95469243,140.85,140.82,9.78882769]
[1763539727014,3.95469243,140.85,140.81,9.78882769]
[1763539727230,3.95469243,140.85,140.81,10.44882769]
[1763539727834,0.72,140.84,140.81,10.44882769]
[1763539728226,3.95469243,140.84,140.81,10.44882769]
[1763539731757,3.23469243,140.84,140.8,9.78882769]
[1763539731963,3.93469243,140.84,140.81,0.67]
[1763539732259,0.7,140.86,140.81,0.67]
[1763539732570,3.93469243,140.86,140.81,0.67]
[1763539733443,3.93469243,140.85,140.81,0.67]
[1763539734541,22.05565243,140.85,140.81,0.67]
[1763539735441,3.93469243,140.85,140.81,0.67]
[1763539736369,0.7,140.85,140.81,0.67]
[1763539736682,3.93469243,140.85,140.81,0.67]
[1763539737032,3.93469243,140.85,140.82,9.78882769]
[1763539737238,4.78624215,140.88,140.82,9.78882769]
[1763539737551,3.93469243,140.87,140.84,9.78882769]
[1763539738150,3.93469243,140.86,140.84,9.78882769]
[1763539739158,3.93469243,140.86,140.82,10.45882769]